bitfinex/quotes_SOLUSD_20241229
["timestamp","ask_amount","ask_price","bid_price","bid_amount"]
[1735510084020,27.706584,190.86,190.83,20.0]
[1735510084536,28.48936895,190.86,190.83,20.0]
[1735510085835,10.55447352,190.84,190.77,10.55447352]
[1735510086135,23.776884,190.82,190.77,10.55447352]
[1735510086338,23.776884,190.82,190.8,20.0]
[1735510087041,10.55447352,190.84,190.8,20.0]
[1735510087344,10.55447352,190.85,190.81,20.0]
[1735510087837,11.33725847,190.84,190.81,20.0]
[1735510088741,23.776884,190.83,190.81,20.0]
[1735510093214,23.776884,190.83,190.8,20.0]
[1735510095545,0.78278495,190.89,190.85,20.0]
[1735510095748,11.33725847,190.9,190.85,20.0]
[1735510096073,9.4713,190.91,190.85,20.0]
[1735510096074,20.80855847,190.91,190.85,20.0]
[1735510096237,23.776884,190.9,190.85,20.0]
[1735510098265,23.776884,190.9,190.87,20.0]
[1735510101849,34.33135752,190.9,190.87,20.0]
[1735510102474,23.776884,190.88,190.86,20.0]
[1735510103475,23.776884,190.88,190.82,30.55447352]
[1735510103774,23.776884,190.88,190.85,20.0]
[1735510105461,23.776884,190.88,190.8,10.55447352]
[1735510105462,23.776884,190.86,190.8,10.55447352]
[1735510106477,23.776884,190.86,190.83,20.0]
[1735510107776,11.33725847,190.86,190.82,20.0]
[1735510107949,10.55447352,190.86,190.82,20.0]
[1735510108149,34.33135752,190.86,190.82,20.0]
[1735510108360,23.776884,190.85,190.82,20.0]
[1735510109678,10.55447352,190.86,190.82,20.0]
[1735510109863,23.776884,190.85,190.82,20.0]
[1735510110992,23.776884,190.83,190.81,20.0]
[1735510113878,34.33135752,190.83,190.79,20.0]
[1735510114073,23.776884,190.81,190.79,20.0]
[1735510114976,23.776884,190.81,190.78,20.0]
[1735510115149,10.55447352,190.83,190.79,20.0]
[1735510115362,0.78278495,190.87,190.8,30.55447352]
[1735510115588,10.55447352,190.88,190.84,20.0]
[1735510115888,23.776884,190.87,190.84,20.0]
[1735510117786,3.92107289,190.9,190.85,20.0]
[1735510118084,3.92107289,190.9,190.78,7.6399]
[1735510118085,10.55447352,190.9,190.84,10.55447352]
[1735510118877,23.776884,190.89,190.84,10.55447352]
[1735510120893,1.6139,190.91,190.87,20.0]
[1735510121099,10.55447352,190.92,190.88,20.0]
[1735510122472,23.776884,190.91,190.88,20.0]
[1735510124283,10.55447352,190.91,190.88,20.0]
[1735510124689,10.55447352,190.93,190.89,20.0]
[1735510125210,23.776884,190.92,190.89,20.0]
[1735510126717,24.55966895,190.92,190.89,20.0]
[1735510127210,24.55966895,190.92,190.85,30.55447352]
[1735510127211,35.11414247,190.92,190.85,30.55447352]
[1735510128618,10.55447352,190.91,190.85,20.0]
[1735510128788,34.33135752,190.89,190.8,30.0]
[1735510129112,34.33135752,190.89,190.82,10.55447352]
[1735510129318,23.776884,190.87,190.85,20.0]
[1735510129914,10.55447352,190.89,190.85,20.0]
[1735510130285,23.776884,190.88,190.85,20.0]
[1735510131519,23.776884,190.89,190.86,20.0]
[1735510132016,10.55447352,190.89,190.82,10.55447352]
[1735510132187,10.55447352,190.89,190.85,20.0]
[1735510132687,23.776884,190.88,190.85,20.0]
[1735510134010,34.33135752,190.88,190.79,0.78587604]
[1735510134222,23.776884,190.86,190.8,10.55447352]
[1735510134787,10.55447352,190.86,190.79,10.55447352]
[1735510134982,10.55447352,190.86,190.82,20.0]
[1735510135403,34.33135752,190.84,190.74,1.6409]
[1735510135683,34.33135752,190.82,190.76,10.55447352]
[1735510137614,23.776884,190.82,190.76,10.55447352]
[1735510137822,23.776884,190.82,190.79,20.0]
[1735510140137,35.11414247,190.82,190.78,20.0]
[1735510140925,0.78278495,190.81,190.78,20.0]
[1735510141221,10.55447352,190.82,190.78,20.0]
[1735510141725,23.776884,190.8,190.78,20.0]
[1735510142236,0.78278495,190.79,190.73,20.0]
[1735510142416,23.776884,190.78,190.73,10.55447352]
[1735510142736,23.776884,190.78,190.74,10.55447352]
[1735510143024,23.776884,190.79,190.77,20.0]
[1735510143398,12.15757352,190.82,190.78,20.0]
[1735510144629,23.776884,190.8,190.78,20.0]
[1735510144932,23.776884,190.81,190.78,20.0]
[1735510145509,24.55966895,190.81,190.78,20.0]
[1735510146236,23.776884,190.81,190.78,20.0]
[1735510146904,0.78278495,190.8,190.74,30.55447352]
[1735510147106,23.776884,190.81,190.78,20.0]
[1735510149337,1.6031,190.87,190.83,20.0]
[1735510149637,12.15757352,190.87,190.83,20.0]
[1735510149838,23.776884,190.86,190.83,20.0]
[1735510150144,0.78278495,190.86,190.83,20.0]
[1735510150321,23.776884,190.85,190.82,20.0]
[1735510150637,0.78278495,190.86,190.82,20.0]
[1735510150933,11.33725847,190.86,190.82,20.0]
[1735510151146,23.776884,190.85,190.82,20.0]
[1735510151507,24.55966895,190.84,190.81,20.0]
[1735510153237,10.55447352,190.85,190.81,20.0]
[1735510153436,10.55447352,190.85,190.82,20.0]
[1735510153737,35.11414247,190.86,190.82,20.0]
[1735510155335,10.55447352,190.85,190.81,20.0]
[1735510157257,23.776884,190.82,190.72,6.4574]
[1735510157430,11.33725847,190.82,190.74,10.55447352]
[1735510158230,11.33725847,190.82,190.77,20.0]
[1735510158231,23.776884,190.8,190.77,20.0]
[1735510158535,23.776884,190.8,190.78,20.0]
[1735510159170,23.776884,190.8,190.77,20.0]
[1735510160954,11.33725847,190.81,190.74,10.55447352]
[1735510162053,0.78278495,190.81,190.74,10.55447352]
[1735510162232,0.78278495,190.81,190.77,20.0]
[1735510162728,0.78278495,190.81,190.76,10.55447352]
[1735510162952,10.55447352,190.84,190.77,10.55447352]
[1735510163259,0.78278495,190.83,190.77,10.55447352]
[1735510165271,11.33725847,190.83,190.79,20.0]
[1735510169380,23.776884,190.82,190.79,20.0]
[1735510169561,0.78278495,190.81,190.77,20.0]
[1735510170577,11.33725847,190.81,190.77,20.0]
[1735510170971,10.55447352,190.79,190.67,6.3995]
[1735510171151,11.33725847,190.78,190.67,6.3995]
[1735510171476,10.55447352,190.77,190.7,10.55447352]
[1735510171663,10.55447352,190.79,190.74,20.0]
[1735510171862,0.78278495,190.78,190.74,20.0]
[1735510172268,11.33725847,190.78,190.74,20.0]
[1735510172450,10.55447352,190.77,190.7,30.55447352]
[1735510172651,0.78278495,190.76,190.7,30.55447352]
[1735510174287,2.29428495,190.81,190.75,20.0]
[1735510174462,10.55447352,190.8,190.76,20.0]
[1735510174666,10.55447352,190.78,190.76,20.0]
[1735510174856,0.78278495,190.77,190.76,20.0]
[1735510175478,0.78278495,190.77,190.73,20.0]
[1735510175992,0.78278495,190.77,190.74,20.0]
[1735510176191,0.78278495,190.78,190.75,20.0]
[1735510176554,0.78278495,190.78,190.71,10.55447352]
[1735510176555,10.55447352,190.77,190.7,10.55447352]
[1735510176879,0.78278495,190.76,190.69,10.55447352]
[1735510177080,11.33725847,190.76,190.72,20.0]
[1735510177693,10.55447352,190.75,190.71,20.0]
[1735510177984,0.78278495,190.74,190.71,20.0]
[1735510178466,0.78278495,190.74,190.68,10.55447352]
[1735510178792,10.55447352,190.73,190.69,20.0]
[1735510178958,0.78278495,190.72,190.69,20.0]
[1735510179290,1.5003,190.74,190.68,10.55447352]
[1735510179493,0.78278495,190.73,190.68,10.55447352]
[1735510179985,0.78278495,190.73,190.7,20.0]
[1735510184271,0.78278495,190.73,190.67,30.55447352]
[1735510185181,0.78278495,190.73,190.68,10.55447352]
[1735510185485,0.78278495,190.73,190.67,30.55447352]
[1735510186091,0.78278495,190.73,190.69,20.0]
[1735510187182,0.78278495,190.73,190.66,10.55447352]
[1735510187183,10.55447352,190.7,190.61,2.35143532]
[1735510187367,11.33725847,190.69,190.62,10.55447352]
[1735510188490,11.33725847,190.69,190.61,12.90590884]
[1735510189062,10.55447352,190.68,190.61,12.90590884]
[1735510189266,0.78278495,190.67,190.66,20.0]
[1735510191488,11.33725847,190.67,190.61,2.35143532]
[1735510191701,10.55447352,190.65,190.61,2.35143532]
[1735510191861,10.55447352,190.66,190.61,2.35143532]
[1735510192063,0.78278495,190.65,190.61,2.35143532]
[1735510192802,0.78278495,190.65,190.64,18.81365136]
[1735510193302,11.33725847,190.65,190.64,18.81365136]
[1735510196881,12.95355847,190.65,190.64,18.81365136]
[1735510197082,2.39908495,190.65,190.64,18.81365136]
[1735510197477,12.95355847,190.65,190.64,18.81365136]
[1735510198210,2.39908495,190.65,190.64,18.81365136]
[1735510198398,12.95355847,190.65,190.64,18.81365136]
[1735510201514,19.14765847,190.65,190.5,1.518]
[1735510201814,10.55447352,190.57,190.51,10.55447352]
[1735510202119,0.78278495,190.56,190.52,10.55447352]
[1735510202287,0.78278495,190.58,190.52,10.55447352]
[1735510202488,0.78278495,190.58,190.54,10.55447352]
[1735510203090,0.78278495,190.58,190.53,10.55447352]
[1735510203490,0.78278495,190.58,190.53,9.05447352]
[1735510204210,0.78278495,190.58,190.51,20.0]
[1735510204398,0.78278495,190.58,190.53,10.55447352]
[1735510204601,0.78278495,190.58,190.52,10.55447352]
[1735510205224,11.33725847,190.58,190.52,10.55447352]
[1735510205512,10.55447352,190.57,190.52,20.0]
[1735510205721,0.78278495,190.56,190.52,20.0]
[1735510206303,10.55447352,190.57,190.52,20.0]
[1735510206598,0.78278495,190.56,190.52,20.0]
[1735510206906,0.78278495,190.56,190.48,6.1594]
[1735510207110,0.78278495,190.56,190.51,20.0]
[1735510207441,10.55447352,190.55,190.51,20.0]
[1735510207585,1.6176,190.57,190.43,6.0327]
[1735510207586,10.55447352,190.52,190.43,6.0327]
[1735510207792,0.78278495,190.51,190.45,10.55447352]
[1735510208207,0.78278495,190.51,190.46,10.55447352]
[1735510208734,11.33725847,190.52,190.45,10.55447352]
[1735510209233,10.55447352,190.51,190.45,10.55447352]
[1735510209398,0.78278495,190.5,190.44,10.05447352]
[1735510209899,0.78278495,190.5,190.45,10.55447352]
[1735510210111,10.55447352,190.49,190.4,1.6437]
[1735510210311,10.55447352,190.49,190.38,6.0327]
[1735510210312,10.55447352,190.47,190.38,6.0327]
[1735510210516,0.78278495,190.48,190.37,21.16916133]
[1735510210517,10.55447352,190.45,190.37,21.16916133]
[1735510210705,11.33725847,190.44,190.38,10.55447352]
[1735510211432,0.78278495,190.44,190.39,10.55447352]
[1735510211607,0.78278495,190.45,190.39,10.55447352]
[1735510211923,10.55447352,190.44,190.37,21.16916133]
[1735510212235,10.55447352,190.41,190.37,21.16916133]
[1735510212414,0.78278495,190.4,190.37,21.16916133]
[1735510213032,11.33725847,190.4,190.37,21.16916133]
[1735510213404,10.55447352,190.38,190.37,21.16916133]
[1735510214221,10.55447352,190.39,190.37,21.16916133]
[1735510214418,0.78278495,190.38,190.37,21.16916133]
[1735510214830,0.78278495,190.41,190.37,21.16916133]
[1735510215119,11.33725847,190.41,190.37,21.16916133]
[1735510215326,10.55447352,190.4,190.37,21.16916133]
[1735510215537,0.78278495,190.39,190.37,21.16916133]
[1735510216418,11.33725847,190.41,190.37,21.16916133]
[1735510216621,0.78278495,190.41,190.37,21.16916133]
[1735510217327,0.78278495,190.41,190.38,10.55447352]
[1735510217518,11.33725847,190.46,190.39,10.55447352]
[1735510217839,10.55447352,190.43,190.37,21.16916133]
[1735510218042,11.33725847,190.42,190.37,21.16916133]
[1735510218246,0.78278495,190.42,190.37,21.16916133]
[1735510218535,10.55447352,190.38,190.37,21.16916133]
[1735510219002,12.20707352,190.38,190.37,21.16916133]
[1735510219208,12.98985847,190.38,190.37,21.16916133]
[1735510220306,12.98985847,190.38,190.31,46.2650625]
[1735510220307,6.142,190.37,190.31,36.2666625]
[1735510220512,0.78278495,190.36,190.31,36.2666625]
[1735510220711,10.55447352,190.34,190.31,36.2666625]
[1735510220911,7.6778682,190.37,190.31,36.2666625]
[1735510220912,11.33725847,190.33,190.31,36.2666625]
[1735510221629,0.78278495,190.33,190.31,36.2666625]
[1735510222137,10.55447352,190.32,190.31,36.2666625]
[1735510222634,10.55447352,190.33,190.31,36.2666625]
[1735510222940,11.33725847,190.32,190.31,36.2666625]
[1735510223236,0.78278495,190.32,190.31,36.2666625]
[1735510225038,0.78278495,190.33,190.31,36.2666625]
[1735510225348,0.78278495,190.33,190.31,46.82113602]
[1735510225537,0.78278495,190.39,190.31,46.82113602]
[1735510225849,0.78278495,190.39,190.31,36.2666625]
[1735510226027,0.78278495,190.39,190.33,10.55447352]
[1735510226229,0.78278495,190.39,190.34,10.55447352]
[1735510226429,1.6526,190.45,190.31,36.2666625]
[1735510226430,0.78278495,190.4,190.35,10.55447352]
[1735510227475,4.10155438,190.46,190.36,10.55447352]
[1735510227476,0.78278495,190.41,190.36,10.55447352]
[1735510227750,0.78278495,190.41,190.39,10.55447352]
[1735510228044,11.33725847,190.45,190.38,10.55447352]
[1735510228250,17.38914409,190.45,190.38,16.60635914]
[1735510228756,0.78278495,190.45,190.4,16.60635914]
[1735510229047,0.78278495,190.45,190.41,16.60635914]
[1735510229247,0.78278495,190.47,190.41,16.60635914]
[1735510230059,16.60635914,190.45,190.38,16.60635914]
[1735510230222,0.78278495,190.44,190.39,16.60635914]
[1735510231032,16.60635914,190.43,190.37,23.12555914]
[1735510231221,17.38914409,190.42,190.37,6.5192]
[1735510231425,17.38914409,190.42,190.36,23.776884]
[1735510231651,17.38914409,190.42,190.34,16.60635914]
[1735510231652,16.60635914,190.41,190.34,16.60635914]
[1735510231827,17.38914409,190.4,190.34,16.60635914]
[1735510232145,0.78278495,190.4,190.35,36.60635914]
[1735510232351,0.78278495,190.45,190.39,16.60635914]
[1735510232528,0.78278495,190.45,190.41,16.60635914]
[1735510232725,0.78278495,190.45,190.4,16.60635914]
[1735510233369,0.78278495,190.46,190.4,16.60635914]
[1735510234052,0.78278495,190.46,190.37,16.60635914]
[1735510234053,16.60635914,190.44,190.37,16.60635914]
[1735510234362,16.60635914,190.42,190.35,36.60635914]
[1735510234560,17.38914409,190.41,190.35,20.0]
[1735510234755,17.38914409,190.41,190.32,6.0511]
[1735510234756,16.60635914,190.37,190.32,6.0511]
[1735510234927,16.60635914,190.35,190.31,36.2666625]
[1735510235256,0.78278495,190.34,190.31,36.2666625]
[1735510235760,17.38914409,190.34,190.31,36.2666625]
[1735510236461,0.78278495,190.34,190.31,36.2666625]
[1735510236833,17.38914409,190.34,190.31,36.2666625]
[1735510237155,0.78278495,190.34,190.31,36.2666625]
[1735510237561,0.78278495,190.35,190.31,36.2666625]
[1735510237742,17.38914409,190.35,190.31,36.2666625]
[1735510238266,0.78278495,190.35,190.31,36.2666625]
[1735510240056,17.38914409,190.35,190.31,36.2666625]
[1735510240356,0.78278495,190.35,190.31,36.2666625]
[1735510240725,17.38914409,190.35,190.31,36.2666625]
[1735510240954,0.78278495,190.35,190.31,36.2666625]
[1735510242503,0.78278495,190.35,190.31,52.87302164]
[1735510242662,16.60635914,190.36,190.31,36.2666625]
[1735510242846,0.78278495,190.35,190.31,36.2666625]
[1735510243164,0.78278495,190.35,190.31,52.87302164]
[1735510243631,0.78278495,190.35,190.33,16.60635914]
[1735510243829,1.5244,190.44,190.34,16.60635914]
[1735510243830,0.78278495,190.39,190.34,16.60635914]
[1735510244444,17.38914409,190.39,190.32,16.60635914]
[1735510244755,16.60635914,190.38,190.31,52.87302164]
[1735510244965,0.78278495,190.37,190.31,52.87302164]
[1735510245867,16.60635914,190.36,190.31,36.2666625]
[1735510246048,17.38914409,190.35,190.31,36.2666625]
[1735510246231,0.78278495,190.35,190.31,36.2666625]
[1735510246433,16.60635914,190.35,190.31,36.2666625]
[1735510246648,0.78278495,190.34,190.31,36.2666625]
[1735510248248,0.78278495,190.35,190.31,36.2666625]
[1735510249940,0.78278495,190.35,190.33,16.60635914]
[1735510250142,16.60635914,190.39,190.33,16.60635914]
[1735510250341,0.78278495,190.38,190.33,16.60635914]
[1735510250556,0.78278495,190.38,190.32,16.60635914]
[1735510251939,0.78278495,190.38,190.33,16.60635914]
[1735510252163,10.0388619,190.45,190.37,16.60635914]
[1735510252164,0.78278495,190.39,190.37,16.60635914]
[1735510252341,16.60635914,190.43,190.37,16.60635914]
[1735510252539,0.78278495,190.42,190.36,16.60635914]
[1735510254075,0.78278495,190.42,190.37,16.60635914]
[1735510254470,0.78278495,190.42,190.4,16.60635914]
[1735510254647,16.60635914,190.45,190.39,16.60635914]
[1735510254978,17.38914409,190.44,190.38,16.60635914]
[1735510255143,16.60635914,190.43,190.37,24.27415914]
[1735510255443,0.78278495,190.42,190.37,24.27415914]
[1735510255968,16.60635914,190.41,190.31,36.2666625]
[1735510256144,0.78278495,190.4,190.35,16.60635914]
[1735510256767,0.78278495,190.4,190.36,16.60635914]
[1735510257167,0.78278495,190.41,190.36,16.60635914]
[1735510257351,0.78278495,190.41,190.35,16.60635914]
[1735510257672,17.38914409,190.41,190.35,16.60635914]
[1735510258070,0.78278495,190.41,190.36,16.60635914]
[1735510258975,16.60635914,190.39,190.32,23.776884]
[1735510259151,0.78278495,190.38,190.32,40.38324314]
[1735510259356,0.78278495,190.38,190.33,16.60635914]
[1735510259980,0.78278495,190.38,190.34,16.60635914]
[1735510260173,16.60635914,190.4,190.33,16.60635914]
[1735510260473,0.28278495,190.39,190.33,16.60635914]
[1735510262005,16.60635914,190.38,190.31,36.2666625]
[1735510262175,16.88914409,190.37,190.31,36.2666625]
[1735510262995,16.10635914,190.36,190.31,36.2666625]
[1735510263169,0.28278495,190.35,190.31,36.2666625]
[1735510264093,0.28278495,190.36,190.31,52.87302164]
[1735510264300,0.28278495,190.36,190.34,16.60635914]
[1735510264602,16.60635914,190.38,190.32,23.776884]
[1735510264898,0.28278495,190.37,190.32,23.776884]
[1735510265196,0.28278495,190.37,190.31,52.87302164]
[1735510265395,16.60635914,190.36,190.31,36.2666625]
[1735510265605,0.28278495,190.35,190.31,36.2666625]
[1735510265906,16.38914409,190.36,190.31,36.2666625]
[1735510266082,16.60635914,190.37,190.31,36.2666625]
[1735510267604,16.60635914,190.33,190.31,36.2666625]
[1735510268188,16.60635914,190.36,190.31,36.2666625]
[1735510268394,16.60635914,190.37,190.31,36.2666625]
[1735510268899,16.60635914,190.35,190.31,36.2666625]
[1735510269709,16.60635914,190.36,190.31,36.2666625]
[1735510270023,16.60635914,190.35,190.31,36.2666625]
[1735510270309,16.60635914,190.34,190.31,36.2666625]
[1735510270805,16.60635914,190.33,190.31,36.2666625]
[1735510271009,16.60635914,190.34,190.31,36.2666625]
[1735510271680,16.60635914,190.32,190.31,36.2666625]
[1735510272389,16.60635914,190.33,190.31,36.2666625]
[1735510272700,18.13635914,190.4,190.31,36.2666625]
[1735510272701,16.60635914,190.34,190.31,36.2666625]
[1735510273080,16.60635914,190.36,190.31,36.2666625]
[1735510273606,16.60635914,190.35,190.31,36.2666625]
[1735510274297,10.63791603,190.35,190.31,36.2666625]
[1735510274810,10.63791603,190.34,190.31,36.2666625]
[1735510275612,44.08166412,190.4,190.31,36.2666625]
[1735510275613,10.63791603,190.32,190.31,36.2666625]
[1735510279885,10.63791603,190.33,190.31,36.2666625]
[1735510280105,8.09730133,190.39,190.31,36.2666625]
[1735510280308,10.63791603,190.37,190.31,36.2666625]
[1735510280504,10.63791603,190.36,190.31,36.2666625]
[1735510280709,8.09730133,190.39,190.32,10.63791603]
[1735510281017,8.09730133,190.39,190.34,10.63791603]
[1735510281326,10.63791603,190.38,190.32,10.63791603]
[1735510281733,10.63791603,190.37,190.31,46.90457853]
[1735510282202,16.61758069,190.37,190.31,36.2666625]
[1735510282408,16.61758069,190.38,190.31,52.88424319]
[1735510283127,16.61758069,190.36,190.31,36.2666625]
[1735510283339,16.61758069,190.34,190.31,36.2666625]
[1735510285010,16.61758069,190.33,190.31,36.2666625]
[1735510285517,16.61758069,190.32,190.31,36.2666625]
[1735510286338,16.61758069,190.33,190.31,36.2666625]
[1735510287614,16.11758069,190.33,190.31,36.2666625]
[1735510287819,16.61758069,190.32,190.31,36.2666625]
[1735510290349,9.67830133,190.37,190.31,36.2666625]
[1735510290568,24.71488202,190.37,190.31,36.2666625]
[1735510290722,24.71488202,190.37,190.31,52.88424319]
[1735510291062,8.09730133,190.37,190.32,16.61758069]
[1735510291423,16.61758069,190.39,190.32,16.61758069]
[1735510291755,24.71488202,190.4,190.33,16.61758069]
[1735510291966,16.61758069,190.39,190.33,16.61758069]
[1735510292827,16.61758069,190.37,190.31,52.88424319]
[1735510293028,16.61758069,190.36,190.31,36.2666625]
[1735510293665,16.61758069,190.37,190.31,36.2666625]
[1735510294462,4.03503052,190.43,190.31,36.2666625]
[1735510294463,16.61758069,190.35,190.31,36.2666625]
[1735510294656,16.61758069,190.32,190.31,36.2666625]
[1735510294831,16.61758069,190.33,190.31,36.2666625]
[1735510295771,8.09730133,190.42,190.31,36.2666625]
[1735510296067,16.61758069,190.34,190.31,36.2666625]
[1735510297138,16.61758069,190.33,190.31,36.2666625]
[1735510298572,16.61758069,190.34,190.31,36.2666625]
[1735510298897,16.61758069,190.36,190.31,36.2666625]
[1735510300379,16.61758069,190.38,190.31,52.88424319]
[1735510301680,16.61758069,190.38,190.32,23.776884]
[1735510301854,16.61758069,190.38,190.32,40.39446469]
[1735510302181,16.61758069,190.39,190.34,23.776884]
[1735510303272,16.61758069,190.38,190.35,20.0]
[1735510305207,16.61758069,190.39,190.35,20.0]
[1735510305369,16.61758069,190.38,190.35,20.0]
[1735510305882,16.61758069,190.39,190.35,20.0]
[1735510307703,4.03503052,190.46,190.35,20.0]
[1735510307704,16.61758069,190.38,190.35,20.0]
[1735510308890,16.61758069,190.36,190.34,20.0]
[1735510310202,16.61758069,190.36,190.35,20.0]
[1735510310413,16.61758069,190.37,190.35,20.0]
[1735510310576,16.61758069,190.37,190.32,23.776884]
[1735510310783,16.61758069,190.33,190.31,36.2666625]
[1735510312408,16.61758069,190.4,190.31,36.2666625]
[1735510312409,16.61758069,190.34,190.31,36.2666625]
[1735510313311,16.61758069,190.32,190.31,36.2666625]
[1735510315309,16.61758069,190.33,190.31,36.2666625]
[1735510315509,16.61758069,190.34,190.31,36.2666625]
[1735510316393,10.63819842,190.34,190.31,36.2666625]
[1735510316700,10.63819842,190.33,190.31,36.2666625]
[1735510316909,10.63819842,190.32,190.31,36.2666625]
[1735510318832,10.63819842,190.34,190.31,36.2666625]
[1735510320227,12.67833325,190.41,190.31,36.2666625]
[1735510320429,10.63819842,190.36,190.31,36.2666625]
[1735510320633,10.63819842,190.35,190.31,36.2666625]
[1735510321130,10.63819842,190.32,190.31,36.2666625]
[1735510321316,10.63819842,190.33,190.31,36.2666625]
[1735510321511,2.71319505,190.39,190.31,36.2666625]
[1735510321716,10.63819842,190.36,190.31,36.2666625]
[1735510322021,10.63819842,190.35,190.31,36.2666625]
[1735510322331,3.9403,190.34,190.31,36.2666625]
[1735510322829,20.56034567,190.34,190.31,36.2666625]
[1735510323034,16.62004567,190.32,190.31,36.2666625]
[1735510323337,16.62004567,190.33,190.31,36.2666625]
[1735510323528,3.9403,190.34,190.31,36.2666625]
[1735510323938,3.9403,190.34,190.31,52.88670817]
[1735510324135,3.9403,190.34,190.33,20.0]
[1735510324504,16.62004567,190.38,190.33,20.0]
[1735510325717,16.62004567,190.37,190.33,20.0]
[1735510325918,16.62004567,190.36,190.33,20.0]
[1735510327035,2.71319505,190.42,190.33,42.90654567]
[1735510327242,16.62004567,190.4,190.34,20.0]
[1735510327442,16.62004567,190.4,190.34,36.62004567]
[1735510328222,4.26929505,190.47,190.38,16.62004567]
[1735510328223,2.71319505,190.47,190.38,16.62004567]
[1735510328425,16.62004567,190.45,190.38,16.62004567]
[1735510329309,2.71319505,190.47,190.4,6.2865]
[1735510329310,16.62004567,190.46,190.4,6.2865]
[1735510329750,19.33324072,190.47,190.4,22.90654567]
[1735510330339,16.62004567,190.46,190.4,22.90654567]
[1735510330546,16.62004567,190.47,190.44,20.0]
[1735510330718,16.62004567,190.49,190.42,16.62004567]
[1735510330931,16.62004567,190.49,190.43,38.15214567]
[1735510331242,2.71319505,190.51,190.46,16.62004567]
[1735510331556,16.62004567,190.52,190.46,16.62004567]
[1735510332348,20.36501994,190.53,190.49,20.0]
[1735510332551,16.62004567,190.54,190.49,20.0]
[1735510332714,16.62004567,190.53,190.49,20.0]
[1735510333740,16.62004567,190.52,190.49,20.0]
[1735510333941,16.62004567,190.5,190.43,1.5321]
[1735510334147,23.776884,190.55,190.43,1.5321]
[1735510334148,16.62004567,190.47,190.43,1.5321]
[1735510334349,23.776884,190.55,190.44,20.0]
[1735510334350,16.62004567,190.48,190.44,20.0]
[1735510334655,16.62004567,190.45,190.44,20.0]
[1735510334955,16.62004567,190.46,190.44,20.0]
[1735510335260,16.62004567,190.47,190.43,21.5321]
[1735510335854,16.62004567,190.48,190.44,20.0]
[1735510336045,16.62004567,190.51,190.44,16.62004567]
[1735510336226,40.39692967,190.5,190.43,38.15214567]
[1735510336547,16.62004567,190.49,190.43,38.15214567]
[1735510336850,16.62004567,190.48,190.44,20.0]
[1735510337432,16.62004567,190.49,190.45,20.0]
[1735510339358,16.62004567,190.47,190.45,20.0]
[1735510339530,16.62004567,190.46,190.45,20.0]
[1735510339732,16.62004567,190.46,190.43,1.5321]
[1735510340052,23.776884,190.51,190.43,21.5321]
[1735510340256,16.62004567,190.46,190.43,21.5321]
[1735510340669,16.62004567,190.45,190.43,21.5321]
[1735510340965,16.62004567,190.46,190.43,21.5321]
[1735510341438,16.62004567,190.45,190.43,21.5321]
[1735510342330,16.62004567,190.44,190.43,20.0]
[1735510342537,23.776884,190.43,190.4,6.2865]
[1735510342774,16.62004567,190.41,190.4,6.2865]
[1735510343271,16.62004567,190.41,190.39,1.6529]
[1735510343583,16.62004567,190.4,190.39,20.0]
[1735510344667,16.62004567,190.41,190.39,20.0]
[1735510345882,16.62004567,190.4,190.39,20.0]
[1735510346773,15.72594567,190.4,190.39,20.0]
[1735510347179,15.72594567,190.4,190.36,6.5925]
[1735510347348,16.62004567,190.37,190.36,6.5925]
[1735510347555,40.39692967,190.37,190.35,1.6529]
[1735510347793,16.62004567,190.36,190.35,1.6529]
[1735510348082,16.62004567,190.36,190.35,20.0]
[1735510350168,16.62004567,190.36,190.32,6.5925]
[1735510350389,16.62004567,190.35,190.32,6.5925]
[1735510350557,16.62004567,190.35,190.34,20.0]
[1735510351989,16.62004567,190.35,190.32,6.5925]
[1735510353564,16.62004567,190.34,190.32,6.5925]
[1735510354566,16.62004567,190.35,190.32,6.5925]
[1735510355589,16.62004567,190.37,190.32,6.5925]
[1735510357084,16.62004567,190.36,190.32,6.5925]
[1735510357295,16.62004567,190.35,190.32,6.5925]
[1735510357587,16.62004567,190.34,190.32,6.5925]
[1735510357797,16.62004567,190.34,190.33,20.0]
[1735510358715,44.33722967,190.34,190.33,20.0]
[1735510359299,27.717184,190.34,190.33,20.0]
[1735510359600,44.33722967,190.34,190.33,20.0]
[1735510360991,44.33722967,190.34,190.31,37.9195625]
[1735510361298,16.62004567,190.32,190.31,36.2666625]
[1735510369595,40.39692967,190.32,190.31,36.2666625]
[1735510370119,40.39692967,190.32,190.31,12.4966625]